Cogmind - Beta 13 @@@ ROGUE MODE // 2024.07.08 @ 20:31:36 Player: Minty Result: Destroyed by EC-O33(R) with Subdweller Shrapnel Launcher Performance ------------- Evolutions (0) 0 Regions Visited (2) 400 Robots Destroyed (34) 170 Value Destroyed (862) 862 Prototype IDs (2) 40 Alien Tech Used (0) 0 Bonus (48) 48 TOTAL SCORE: 1520 Bonus ------- High Alert Combat Kills 48 Cogmind --------- Core Integrity 0/250 Matter 288/300 Energy 184/200 System Corruption 1% Temperature Cool (0) Movement Rolling (95) Location -10/Subcaves Parts ------- > --- POWER (1) -------- Subdweller Power Source > --- PROPULSION (2) --- Wheel Subdweller Monowheel > --- UTILITY (2) ------ Cooling System Small Storage Unit > --- WEAPON (2) ------- Subdweller Beam Cannon Subdweller Beam Cannon > --- INVENTORY (8) ---- Improved Treads Improved Treads Cooling System Small Matter Pod (50) Medium Armor Plating Medium Armor Plating Subdweller Shrapnel Launcher Multitool Peak State ------------ > --- POWER ------------ Subdweller Power Source > --- PROPULSION ------- Wheel Subdweller Monowheel > --- UTILITY ---------- Cooling System Small Storage Unit > --- WEAPON ----------- Subdweller Beam Cannon Subdweller Beam Cannon > --- INVENTORY -------- Improved Treads Improved Treads Cooling System Small Matter Pod Medium Armor Plating Medium Armor Plating Subdweller Shrapnel Launcher Multitool [Rating: 13] Favorites ----------- Power Ion Engine Engine Ion Engine Propulsion Wheel Leg Aluminum Leg Wheel Wheel Utility Small Storage Unit Device Cooling System Storage Small Storage Unit Protection Light Armor Plating Weapon Light Cannon Energy Gun Small Laser Energy Cannon Beam Cannon Ballistic Gun Light Assault Rifle Ballistic Cannon Light Cannon Launcher Grenade Launcher Special Weapon Mining Laser Build | -11 -10 -10 ------- Run | Yrd Mat Sub Slots Evolved . | . . . Power . | . . . Propulsion . | . . . Utility . | . . . Weapon . | . . . Parts Attached 22 | . 13 9 Power 1 | . . 1 Engine 1 | . . 1 Core . | . . . Reactor . | . . . Propulsion 4 | . 2 2 Treads . | . . . Leg . | . . . Wheel 4 | . 2 2 Hover . | . . . Flight . | . . . Utility 2 | . 2 . Device 1 | . 1 . Storage . | . . . Processor . | . . . Hackware . | . . . Protection 1 | . 1 . Artifact . | . . . Weapon 15 | . 9 6 Energy Gun . | . . . Energy Cannon 6 | . 2 4 Ballistic Gun 1 | . 1 . Ballistic Cannon 2 | . 2 . Launcher 4 | . 3 1 Special Weapon 2 | . 1 1 Impact Weapon . | . . . Slashing Weapon . | . . . Piercing Weapon . | . . . Special Melee Weapon . | . . . Unidentified Prototypes . | . . . Parts Lost 2 | . 1 1 Power . | . . . Propulsion 2 | . 1 1 Utility . | . . . Weapon . | . . . Highest Loss Streak 1 | . 1 1 To Critical Strikes . | . . . Average Slot Usage (%) 94 | . 94 95 Engine 14 | . 14 14 Leg 6 | . 8 . Wheel 17 | . 15 23 Device 12 | . 12 14 Storage 14 | . 14 14 Energy Gun 1 | . 1 . Energy Cannon 8 | . 6 21 Ballistic Gun 3 | . 4 . Ballistic Cannon 7 | . 8 . Launcher 3 | . 3 2 Special Weapon 3 | . 3 3 Naked Turns . | . . . Heaviest Build 28 | 12 18 28 Greatest Support 30 | 20 20 30 Greatest Overweight (x) 2 | . 1 2 Average Overweight (x) . | . . 1 Largest Inventory Capacity 8 | . 8 8 Average Capacity 8 | . 8 8 Most Carried 8 | . 8 8 Average Carried 7 | . 7 7 Final Capacity 8 | 8 8 8 Final Carried 8 | 6 8 8 Class Distribution -------------------- 95% | Mutant 4% | Scavenger-Mutant Dominant Class ---------------- Mutant | -10/Materials Mutant | -10/Subcaves Resources | -11 -10 -10 ----------- Run | Yrd Mat Sub Matter Collected 874 | 200 460 214 Remotely . | . . . Salvage Created 874 | . 628 246 Parts 66 | . 50 16 Haulers Intercepted . | . . . Recyclers Shooed . | . . . Parts Field Recycled . | . . . Retrieved Matter . | . . . Parts Self-Destructed . | . . . Prevented . | . . . Kills | -11 -10 -10 ------- Run | Yrd Mat Sub Combat Hostiles Destroyed 27 | . 22 5 Guns 1 | . 1 . Cannons 15 | . 11 4 AOE 11 | . 10 1 Classes Destroyed 8 | . 6 2 Worker 2 | . 2 . Builder 2 | . 2 . Recycler 2 | . 2 . Watcher 1 | . 1 . Swarmer 9 | . 9 . Grunt 13 | . 13 . Artisan 1 | . . 1 Subdweller 5 | . . 5 Best Kill Streak 6 | . 6 2 Combat Bots Only 5 | . 5 2 Max Kills in Single Turn 2 | . 2 2 Gunslinging . | . . . Exploded 2 | . 2 1 Melee . | . . . Uniques/NPCs Destroyed . | . . . Combat | -11 -10 -10 -------- Run | Yrd Mat Sub Hostile Shots Fired 99 | . 90 9 Missed 29 | . 24 5 Damage Taken 868 | . 644 224 Core 272 | . 153 119 Absorbed by Shields . | . . . Core Remaining (%) 100 | 100 . . Volleys Fired 100 | . 88 12 Largest 2 | . 2 2 Hottest 160 | . 100 160 Shots Fired 158 | . 140 18 Gun 22 | . 22 . Cannon 104 | . 87 17 Launcher 30 | . 29 1 Special 2 | . 2 . Kinetic 82 | . 82 . Thermal 46 | . 29 17 Explosive 30 | . 29 1 Electromagnetic . | . . . Robot Hit Streak 7 | . 7 6 Robot Miss Streak 5 | . 5 1 Penetration Max . | . . . Secondary Targets . | . . . Shots Hit Robots 66 | . 53 13 Core Hits 44 | . 38 6 Critical Kills . | . . . Critical Parts Destroyed . | . . . Critical Strikes 2 | . 2 . Blast 2 | . 2 . Melee Attacks . | . . . Impact . | . . . Slashing . | . . . Piercing . | . . . Sneak Attacks . | . . . Combat Hostiles . | . . . Follow-up Attacks . | . . . Damage Inflicted 1875 | . 1534 341 Guns 109 | . 109 . Cannons 937 | . 634 303 Explosions 829 | . 791 38 Melee . | . . . Ramming . | . . . Kinetic 568 | . 568 . Thermal 478 | . 175 303 Explosive 829 | . 791 38 Electromagnetic . | . . . Impact . | . . . Slashing . | . . . Piercing . | . . . Highest Corruption 1 | . 1 1 Average Corruption 1 | . 1 1 Corruption Purged . | . . . Corruption Blocked . | . . . Effects 2 | . . 2 Matter Fused 1 | . . 1 Data Loss (major) 1 | . . 1 Overload Shots . | . . . Overflow Damage 15 | . . 15 Projectiles 15 | . . 15 Explosions . | . . . Melee . | . . . Knockbacks 5 | . 5 . Impact . | . . . Kinetic 5 | . 5 . Secondary . | . . . Self-Inflicted Damage 5 | . 5 . Shots 1 | . 1 . Rammed . | . . . Targets Rammed . | . . . Kicked . | . . . Crushed . | . . . Highest Temperature 20 | . 20 . Average Temperature 10 | . 10 . Received Heat Transfer 216 | . 204 12 Siege Activations . | . . . Robots Corrupted . | . . . Combat Hostiles . | . . . Parts Fried . | . . . Impact Corruptions . | . . . Robots Melted . | . . . Combat Hostiles . | . . . Parts Melted 3 | . . 3 Heat Transferred 777 | . 370 407 Parts Sabotaged . | . . . Parts Stolen . | . . . Parts Stripped . | . . . Power Chain Reactions . | . . . Alert | -11 -10 -10 ------- Run | Yrd Mat Sub Peak Influence 551 | . 551 . Initial . | . . . Average 234 | . 234 . Maximum Alert Level 2 | . 2 . Low Security (%) 45 | . 45 . Level 1 32 | . 32 . Level 2 22 | . 22 . Level 3 . | . . . Level 4 . | . . . Level 5 . | . . . High Security . | . . . Max Security . | . . . Squads Dispatched 9 | . 9 . Investigation 8 | . 8 . Extermination . | . . . Reinforcement 1 | . 1 . Assault . | . . . Garrison . | . . . Intercept . | . . . Searches Triggered . | . . . Construction Impeded . | . . . Haulers Reinforced . | . . . Active Scanning Responses . | . . . Cargo Convoy Interrupts . | . . . Stealth | -11 -10 -10 --------- Run | Yrd Mat Sub Distress Signals . | . . . Communications Jammed . | . . . Distress Signals . | . . . Times Spotted 34 | . 28 6 Peak Tracking Total 5 | . 5 2 Tactical Retreats 1 | . 1 . Traps | -11 -10 -10 ------- Run | Yrd Mat Sub Traps Triggered 2 | . 2 . Indirectly . | . . . Trap Hack Attempts . | . . . Triggered . | . . . Disarmed . | . . . Reprogrammed . | . . . Reused . | . . . Traps Extracted . | . . . Installed . | . . . Triggered . | . . . Machines | -11 -10 -10 ---------- Run | Yrd Mat Sub Machines Disabled 4 | . 4 . Max in Single Turn 1 | . 1 . Machines Repaired . | . . . Machines Dismantled . | . . . Machines Sabotaged 1 | . 1 . Overloaded Fab Kills . | . . . Hacking | -11 -10 -10 --------- Run | Yrd Mat Sub Machines Accessed 7 | . 7 . Terminals 5 | . 5 . Fabricators . | . . . Repair Stations 1 | . 1 . Recycling Units 1 | . 1 . Scanalyzers . | . . . Garrison Access . | . . . Total Hacks 28 | . 28 . Successful 13 | . 13 . Failed 15 | . 15 . Catastrophic 3 | . 3 . Database Lockouts . | . . . Manual 8 | . 8 . Terminals 22 | . 22 . Fabricators . | . . . Repair Stations 3 | . 3 . Recycling Units 3 | . 3 . Scanalyzers . | . . . Garrison Access . | . . . Terminal Hacks 8 | . 8 . Prototype ID Bank 1 | . 1 . Emergency Access Points 1 | . 1 . Terminal Index 1 | . 1 . Alert Level 2 | . 2 . Locate Traps 1 | . 1 . Registered Prototypes 1 | . 1 . Zone Layout 1 | . 1 . Fabricator Hacks . | . . . Repair Station Hacks 1 | . 1 . Scan Component 1 | . 1 . Recycling Unit Hacks 2 | . 2 . Process 1 | . 1 . Retrieve Matter 1 | . 1 . Scanalyzer . | . . . Garrison Access Hacks . | . . . Unauthorized Hacks 2 | . 2 . Terminals 2 | . 2 . Sabotage 1 | . 1 . Search 1 | . 1 . Fabricators . | . . . Repair Stations . | . . . Recycling Units . | . . . Scanalyzers . | . . . Garrison Access . | . . . Data Cores Recovered . | . . . Used . | . . . Hacking Detections 7 | . 7 . Full Trace Events 5 | . 5 . Feedback Events 1 | . 1 . Corruption 1 | . 1 . Feedback Blocked . | . . . Robot Schematics Acquired . | . . . Robots Built . | . . . Authchips . | . . . Time . | . . . Total Robot Build Rating . | . . . Part Schematics Acquired . | . . . Parts Built . | . . . Authchips . | . . . Time . | . . . Total Part Build Rating . | . . . Parts Repaired . | . . . Time . | . . . Parts Recycled . | . . . Recycled Matter 302 | . 302 . Retrieved Matter 638 | . 638 . Retrieved Components . | . . . Parts Scanalyzed . | . . . Part Schematics Acquired . | . . . Parts Damaged . | . . . Bothacking | -11 -10 -10 ------------ Run | Yrd Mat Sub Used RIF Installer . | . . . Robots Hacked . | . . . Non-combat . | . . . Combat . | . . . Robot Hacks Applied . | . . . Relay Couplers Released . | . . . Fabnet Peak Effective % . | . . . Robots Rewired . | . . . Allies Hacked . | . . . Hacks Repelled . | . . . Allies | -11 -10 -10 -------- Run | Yrd Mat Sub Total Allies . | . . . Largest Group . | . . . Highest-Rated Group . | . . . Highest-Rated Ally . | . . . Total Orders . | . . . Ally Attacks . | . . . Total Damage . | . . . Kills . | . . . Allies Corrupted . | . . . Allies Melted . | . . . Intel | -11 -10 -10 ------- Run | Yrd Mat Sub Robot Analysis Total . | . . . Derelict Logs Recovered . | . . . Drone Launches . | . . . Drone Recoveries . | . . . Exploration | -11 -10 -10 ------------- Run | Yrd Mat Sub Turns Passed 1101 | . 940 161 Spaces Moved 794 | 1 677 116 Core . | . . . Treads . | . . . Legs 177 | 1 176 . Wheels 617 | . 501 116 Hover . | . . . Flight . | . . . Fastest Speed 80 | 120 80 95 Average Speed 94 | 120 94 98 Slowest Speed 120 | 120 120 110 Overloaded Moves . | . . . Propulsion Burnouts . | . . . Robots Hopped . | . . . Cave-ins Triggered . | . . . Exploration Rate (%) 37 | 2 96 13 Regions Visited 2 Branch Regions 1 Pre-discovered Areas . | . . . Known Exits Taken . | . . . Unknown Exits Taken 2 | 1 1 . Scrap Searched 1 | . . 1 Spaces Dug 11 | . 11 . Terrain Destroyed 129 | . 123 6 Melee . | . . . Projectile 5 | . 2 3 AOE 124 | . 121 3 Terrain Rammed . | . . . Walls Destroyed . | . . . Machines Disabled . | . . . Actions | -11 -10 -10 --------- Run | Yrd Mat Sub Total 986 | . 839 147 Wait 39 | . 39 . Move 792 | . 676 116 Hop . | . . . Pick Up 12 | . 10 2 Fast Attach 11 | . 6 5 Attach 2 | . 1 1 Detach 1 | . . 1 Swap 9 | . 6 3 Drop 20 | . 13 7 Fire 100 | . 88 12 Melee . | . . . Ram . | . . . Kick . | . . . Crush . | . . . Escape Stasis . | . . . Rewire . | . . . Trap . | . . . Miscellaneous . | . . . Route ------- -11/Scrapyard -10/Materials (discovered 5 exits: [*Mat x3] / [*Min] / [*Sub]) -10/Subcaves History --------- Turn | Location | Event 1 | -11/Scrapyard | Discovered new exit (range 0) 1 | -11/Scrapyard | Entered Materials 207 | -10/Materials | Discovered new exit (range 16) 302 | -10/Materials | Build established: Mutant 340 | -10/Materials | Discovered new exit (range 15) 689 | -10/Materials | Core integrity fell below 50% 703 | -10/Materials | Discovered new exit (range 11) 859 | -10/Materials | Discovered new exit (range 11) 934 | -10/Materials | Discovered new exit (range 9) 941 | -10/Materials | Entered Subcaves 966 | -10/Subcaves | Ambushed by angry Subdweller bent on revenge 1035 | -10/Subcaves | A swath of the cavern ceiling suddenly collapsed 1101 | -10/Subcaves | Core integrity fell below 20% 1102 | -10/Subcaves | Destroyed by EC-O33(R) with Subdweller Shrapnel Launcher Last Messages --------------- 00992_ Acquired Sub. Beam Cannon. 00993_ Acquired 41 matter. 01003_ Subatomizers dissect the Mining Laser. 01014_ System corrupted: Matter fused (-10). 01023_ W0-AYA(R) destroyed. 01027_ V4-OY9(R) destroyed. 01032_ Acquired 54 matter. 01034_ Acquired 48 matter. 01035_ Scrap Shield Fragment crushed. A swath of the cavern ceiling suddenly collapses. 01052_ Wheel destroyed. 01060_ Disposable Heat Sink melted. 01060_ Sub. Laser melted. 01060_ Sub. Power Source melted. 01060_ DE-TSI(R) destroyed. 01060_ P7-CSD(R) destroyed. 01074_ Dropped Grenade Launcher. 01076_ Acquired Sub. Shrapnel Launcher. 01077_ Acquired 28 matter. 01079_ Acquired Sub. Monowheel. Map ----- +----------------------------------------------------+ | ?????????????????????????????????????????????????? | | ?????????????????????????????????????????????????? | | ?????????????????????????????????????????????????? | | ?????????????????????????????????????????????????? | | ?????????????????????????????????????????????????? | | ?????????????????????????????????????????????????? | | ?????????????????????????????????????????????????? | | ?????????????????????????????????????????????????? | | ?????????????????????????????????????????????????? | | ?????????????????????????????????????????????????? | | ?????????????????????????????????????????????????? | | ????????????????????????????? ???????????????????? | | ???????????????????????????? ???????????????????? | | ???????????????????????????? ????????????????????? | | ???????????????????????????? ????????????????????? | | ???????????????????????????# ????????????????????? | | ??????????????????????????# ????????????????????? | | ?????????????#####??????## ?????????????????????? | | ???????????? ????## ?????????????????????? | | ???????????? #?### ?????????????????????? | | ???????????? R ##; ##????????????????????? | | ?????????????? ;####?????????????????? | | ????????????????# ;;; ##????????????????? | | ?????????????????# ####?????????????? | | ???????????????????# #?????????????? | | ????????????????????# @ #??????????????? | | ???????????????????## ;; ##???????????????? | | ???????????????????# ##; ##????????????????? | | ???????????????????# ## #???#?????????????? | | ???????????????????# ## ##?? #?????????????? | | ??????????????????# #?## #?? #?????????????? | | ??????????????????####???# ## #?????????????? | | ?????????????????????????# #?????????????? | | ???????????????????????### ##?????????????? | | ??????????????????###??# #??????????????? | | ?????????????????## #### #??????????????? | | ?????????????????# #####??????????????? | | ?????????????????# ##??????????????????? | | ?????????????????# ##???????????????????? | | ??????????###??### ##???????????????????? | | ??????????# ####*] #???????????????????? | | ?????????## & ##???????????????????? | | ?????????# & & #????????????????????? | | ?????????## &&# ## #????????????????????? | | ?????????# ## ## #???????????????????? | | ???####### & ## ####???????????????????? | | ???#"" "" &% ## # ##??????????????????????? | | ???#" ! #### # #???????????????????????? | | ???#" ####??## #??????????????????????? | | ???#" ##??????##" ??????????????????????? | +----------------------------------------------------+ Best States ------------- Heat Dissipation 47 Energy Generation 15 Energy Capacity 250 Matter Stores 300 Matter Capacity 300 Sight Range 16 Terrain Scan Density 10 Armor Coverage 150 Evasion (%) 55 Item Schematics ----------------- None Robot Schematics ------------------ None Fabricated ------------ Nothing Alien Tech Used ----------------- None Achievements -------------- None Challenges ------------ None Game ------ Seed GaussPortableShockpuncher Manual? 0 Play Time 00:08:19 Cumulative 788.3 hours Start 2024.07.08 @ 14:18:28 End 2024.07.08 @ 20:31:36 Sessions 5 Manual Loads 0 Difficulty Rogue Special Mode None Game No. 910 Rogue 632 Adventurer 124 Explorer 154 Win Type - Total 31 Types 25/0/4/1/0/0/0/1/0 Lore% 84 Gallery% 92 Achievement% 77 Wizard Run 0 Options --------- Layout 0 ASCII 0 Keyboard 1 Movement Numpad Keybinds 0 Fullscreen 2 Font 18/Smallcaps Map View 76x50 Zoom Use 0% Tactical HUD 1 Map Filters NONE Filters NONE Steam 1 RUN: 6bc3a311-3aca-45bf-a7cb-85ad916177ef